Cogmind - Beta 11 X8 @@@ ROGUE MODE // 2021.11.03 @ 14:41:52 Player: leiavoia Result: Destroyed by S-27 Virus with Autogun Performance ------------- Evolutions (3) 1500 Regions Visited (5) 1000 Robots Destroyed (28) 140 Value Destroyed (728) 728 Prototype IDs (0) 0 Alien Tech Used (0) 0 Bonus (60) 60 TOTAL SCORE: 3428 Bonus ------- Follower Combat Kills 60 Cogmind --------- Core Integrity 0/700 Matter 4/300 Energy 100/100 System Corruption 0% Temperature Cool (0) Movement Core (50) Location -7/Factory Parts ------- > --- POWER (1) -------- (None) > --- PROPULSION (6) --- (None) > --- UTILITY (4) ------ (None) > --- WEAPON (2) ------- (None) > --- INVENTORY (5) ---- Gravmag System Cesium-ion Thruster High-powered Shotgun Improved Light Cannon Flail Peak State ------------ > --- POWER ------------ Light Ion Engine > --- PROPULSION ------- Improved Treads Improved Treads Improved Treads Improved Treads Improved Treads > --- UTILITY ---------- Medium Storage Unit Signal Interpreter Kinecellerator Transmission Jammer > --- WEAPON ----------- Mini Grenade Launcher Flail > --- INVENTORY -------- Wheel Wheel Lightning Gun Autogun Autogun High-powered Shotgun Improved Light Cannon Improved Light Cannon Advanced Assault Cannon [Rating: 26] Favorites ----------- Power Light Ion Engine Engine Light Ion Engine Propulsion Improved Treads Treads Improved Treads Leg Aluminum Leg Wheel Wheel Hover Unit Gravmag System Flight Unit Flight Unit Utility Signal Interpreter Device Transmission Jammer Storage Small Storage Unit Processor Signal Interpreter Weapon Mini Grenade Launcher Energy Gun EM Pulse Gun Ballistic Gun Autogun Ballistic Cannon Advanced Assault Cannon Launcher Mini Grenade Launcher Impact Weapon Flail Build | -11 -10 -10 -9 -8 -7 ------- Run | Scr Mat Min Mat Mat Fac Slots Evolved 6 | . . . 2 2 2 Power . | . . . . . . Propulsion 4 | . . . 2 . 2 Utility 2 | . . . . 2 . Weapon . | . . . . . . Parts Attached 44 | . 9 2 4 10 19 Power 3 | . 1 . . 1 1 Engine 3 | . 1 . . 1 1 Core . | . . . . . . Reactor . | . . . . . . Propulsion 20 | . 7 . 2 5 6 Treads 5 | . . . . 4 1 Leg 1 | . . . 1 . . Wheel 9 | . 4 . . 1 4 Hover 1 | . . . . . 1 Flight 4 | . 3 . 1 . . Utility 8 | . 1 . . 2 5 Device 5 | . . . . 2 3 Storage 2 | . . . . . 2 Processor 1 | . 1 . . . . Hackware . | . . . . . . Protection . | . . . . . . Artifact . | . . . . . . Weapon 13 | . . 2 2 2 7 Energy Gun 2 | . . . 1 . 1 Energy Cannon . | . . . . . . Ballistic Gun 5 | . . 2 . 1 2 Ballistic Cannon 3 | . . . . . 3 Launcher 1 | . . . . 1 . Special Weapon . | . . . . . . Impact Weapon 2 | . . . 1 . 1 Slashing Weapon . | . . . . . . Piercing Weapon . | . . . . . . Special Melee Weapon . | . . . . . . Unidentified Prototypes . | . . . . . . Parts Lost 25 | . . . . 4 21 Power 2 | . . . . . 2 Propulsion 14 | . . . . 4 10 Utility 4 | . . . . . 4 Weapon 5 | . . . . . 5 Highest Loss Streak 11 | . . . . 4 11 Average Slot Usage (%) 77 | . 78 75 94 91 67 Engine 7 | . 14 14 11 9 3 Treads 16 | . . . . 22 22 Leg 2 | . 4 . 6 4 . Wheel 2 | . 11 . . . 2 Flight 7 | . 10 28 33 8 . Device 7 | . . . . 12 10 Storage 9 | . 14 14 11 9 7 Processor 7 | . 4 14 11 9 6 Energy Gun 2 | . 10 . 11 . . Ballistic Gun 3 | . 10 4 . 5 . Ballistic Cannon 1 | . . . . . 2 Launcher 3 | . . . . 5 3 Impact Weapon 3 | . . . 11 3 3 Naked Turns 52 | . . . . . 52 Heaviest Build 22 | 13 13 8 12 17 22 Greatest Support 92 | 20 32 8 12 92 46 Greatest Overweight (x) 5 | . 2 . . 3 5 Average Overweight (x) . | . . . . . . Largest Inventory Capacity 10 | . 8 8 8 8 10 Average Capacity 8 | . 8 8 8 8 8 Most Carried 10 | . 8 8 8 8 10 Average Carried 7 | . 7 7 7 7 7 Final Capacity 8 | 8 8 8 8 8 5 Final Carried 8 | 6 8 8 8 8 5 Class Distribution -------------------- 75% | Mutant 24% | Scavenger-Mutant Dominant Class ---------------- Mutant | -10/Materials Mutant | -10/Mines Scavenger-Mutant | -9/Materials Mutant | -8/Materials Mutant | -7/Factory Resources | -11 -10 -10 -9 -8 -7 ----------- Run | Scr Mat Min Mat Mat Fac Matter Collected 613 | 176 58 118 26 33 202 Remotely . | . . . . . . Salvage Created 402 | . 39 29 26 106 202 Parts 54 | . 5 5 5 8 31 Haulers Intercepted . | . . . . . . Recyclers Shooed . | . . . . . . Parts Field Recycled . | . . . . . . Retrieved Matter . | . . . . . . Parts Self-Destructed . | . . . . . . Prevented . | . . . . . . Kills | -11 -10 -10 -9 -8 -7 ------- Run | Scr Mat Min Mat Mat Fac Combat Hostiles Destroyed 17 | . 2 2 . 4 9 Guns 5 | . 2 2 . 1 . Cannons 3 | . . . . . 3 AOE 9 | . . . . 3 6 Classes Destroyed 8 | . 1 . 2 2 3 Worker 3 | . . . 1 1 1 Builder 5 | . . . . . 5 Operator 1 | . . . 1 . . Watcher 2 | . . . . 1 1 Swarmer 9 | . 2 2 . . 5 Grunt 6 | . . . . 4 2 Sentry 1 | . . . . . 1 Programmer 1 | . . . . . 1 Best Kill Streak 6 | . 2 2 4 5 6 Combat Bots Only 4 | . 2 2 . 4 4 Max Kills in Single Turn 4 | . 1 1 1 1 4 Gunslinging . | . . . . . . Exploded 2 | . . . . 1 2 Melee . | . . . . . . Uniques/NPCs Destroyed . | . . . . . . Combat | -11 -10 -10 -9 -8 -7 -------- Run | Scr Mat Min Mat Mat Fac Damage Taken 3270 | . 184 105 42 729 2210 Core 960 | . 41 31 42 144 702 Absorbed by Shields . | . . . . . . Core Remaining (%) 83 | 100 . 71 89 73 . Volleys Fired 68 | . 10 4 4 13 37 Largest 2 | . 2 2 1 1 2 Hottest 103 | . 60 46 40 30 103 Shots Fired 91 | . 20 8 4 13 46 Gun 47 | . 20 8 4 4 11 Cannon 26 | . . . . . 26 Launcher 18 | . . . . 9 9 Special . | . . . . . . Kinetic 55 | . 10 8 . 4 33 Thermal . | . . . . . . Explosive 18 | . . . . 9 9 Electromagnetic 18 | . 10 . 4 . 4 Robot Hit Streak 8 | . 5 1 1 5 8 Robot Miss Streak 8 | . 3 3 2 1 8 Penetration Max . | . . . . . . Secondary Targets 2 | . 1 1 . . . Max Gunslinging Chain 1 | . 1 1 . . . Shots Hit Robots 50 | . 12 2 2 6 28 Core Hits 41 | . 3 2 2 9 25 Critical Kills . | . . . . . . Critical Parts Destroyed . | . . . . . . Critical Strikes 1 | . 1 . . . . Corrupt 1 | . 1 . . . . Melee Attacks 3 | . . . . . 3 Impact 3 | . . . . . 3 Slashing . | . . . . . . Piercing . | . . . . . . Sneak Attacks . | . . . . . . Combat Hostiles . | . . . . . . Follow-up Attacks . | . . . . . . Damage Inflicted 2483 | . 126 31 48 542 1736 Guns 307 | . 126 31 28 44 78 Cannons 515 | . . . . . 515 Explosions 1647 | . . . 20 488 1139 Melee . | . . . . . . Ramming 14 | . . . . 10 4 Kinetic 673 | . 43 31 . 44 555 Thermal 20 | . . . 20 . . Explosive 1627 | . . . . 488 1139 Electromagnetic 149 | . 83 . 28 . 38 Impact . | . . . . . . Slashing . | . . . . . . Piercing . | . . . . . . Highest Corruption . | . . . . . . Average Corruption . | . . . . . . Corruption Purged . | . . . . . . Overload Shots . | . . . . . . Overflow Damage 47 | . . . . . 47 Projectiles . | . . . . . . Explosions 47 | . . . . . 47 Melee . | . . . . . . Knockbacks 4 | . . . . . 4 Impact . | . . . . . . Kinetic 3 | . . . . . 3 Secondary 1 | . . . . . 1 Self-Inflicted Damage 252 | . . . . 36 216 Shots 6 | . . . . 2 4 Rammed 2 | . . . . 1 1 Targets Rammed 3 | . . . . 2 1 Kicked . | . . . . . . Crushed 1 | . . . . 1 . Highest Temperature 60 | . 60 20 6 19 45 Average Temperature 19 | . 34 9 5 7 13 Received Heat Transfer 852 | . . 12 . 360 480 Siege Activations . | . . . . . . Robots Corrupted . | . . . . . . Combat Hostiles . | . . . . . . Parts Fried . | . . . . . . Impact Corruptions . | . . . . . . Robots Melted . | . . . . . . Combat Hostiles . | . . . . . . Parts Melted . | . . . . . . Heat Transferred 50 | . . . 50 . . Parts Sabotaged . | . . . . . . Parts Stolen . | . . . . . . Parts Stripped . | . . . . . . Power Chain Reactions 1 | . . . 1 . . Missiles Intercepted . | . . . . . . Alert | -11 -10 -10 -9 -8 -7 ------- Run | Scr Mat Min Mat Mat Fac Peak Influence 272 | . 114 132 76 149 272 Initial 67 | . . 44 51 . 67 Average 99 | . 40 94 36 88 134 Maximum Alert Level 1 | . . . . . 1 Low Security (%) 87 | . 100 100 100 100 73 Level 1 12 | . . . . . 26 Level 2 . | . . . . . . Level 3 . | . . . . . . Level 4 . | . . . . . . Level 5 . | . . . . . . High Security . | . . . . . . Max Security . | . . . . . . Squads Dispatched 7 | . 3 1 . . 3 Investigation 1 | . 1 . . . . Extermination . | . . . . . . Reinforcement 4 | . 2 . . . 2 Assault 1 | . . 1 . . . Garrison 1 | . . . . . 1 Intercept . | . . . . . . Construction Impeded 2 | . . . . . 2 Haulers Reinforced . | . . . . . . Active Scanning Responses . | . . . . . . Cargo Convoy Interrupts . | . . . . . . Stealth | -11 -10 -10 -9 -8 -7 --------- Run | Scr Mat Min Mat Mat Fac Distress Signals 2 | . . . . 1 1 Communications Jammed 1 | . . . . 1 . Distress Signals 1 | . . . . 1 . Times Spotted 57 | . 11 10 2 10 24 Peak Tracking Total 9 | . 6 5 2 7 9 Tactical Retreats 5 | . 1 . . 1 3 Traps | -11 -10 -10 -9 -8 -7 ------- Run | Scr Mat Min Mat Mat Fac Traps Triggered 1 | . . . 1 . . Indirectly . | . . . . . . Trap Hack Attempts . | . . . . . . Triggered . | . . . . . . Disarmed . | . . . . . . Reprogrammed . | . . . . . . Reused . | . . . . . . Traps Extracted . | . . . . . . Installed . | . . . . . . Triggered . | . . . . . . Machines | -11 -10 -10 -9 -8 -7 ---------- Run | Scr Mat Min Mat Mat Fac Machines Disabled 6 | . . 1 1 1 3 Max in Single Turn 2 | . . . 1 1 2 Machines Sabotaged . | . . . . . . Garrisons Compromised . | . . . . . . Overloaded Fab Kills . | . . . . . . Hacking | -11 -10 -10 -9 -8 -7 --------- Run | Scr Mat Min Mat Mat Fac Machines Accessed 6 | . 2 . 1 1 2 Terminals 5 | . 2 . 1 1 1 Fabricators . | . . . . . . Repair Stations . | . . . . . . Recycling Units 1 | . . . . . 1 Scanalyzers . | . . . . . . Garrison Access . | . . . . . . Total Hacks 13 | . 3 . 4 2 4 Successful 6 | . 1 . 2 1 2 Failed 7 | . 2 . 2 1 2 Catastrophic 2 | . 1 . 1 . . Database Lockouts . | . . . . . . Manual 1 | . 1 . . . . Terminals 12 | . 3 . 4 2 3 Fabricators . | . . . . . . Repair Stations . | . . . . . . Recycling Units 1 | . . . . . 1 Scanalyzers . | . . . . . . Garrison Access . | . . . . . . Terminal Hacks 6 | . 1 . 2 1 2 Level Access Points 1 | . . . . . 1 Branch Access Points 1 | . . . . . 1 Unreport Threat 2 | . . . 2 . . Locate Traps 1 | . 1 . . . . Zone Layout 1 | . . . . 1 . Fabricator Hacks . | . . . . . . Repair Station Hacks . | . . . . . . Recycling Unit Hacks . | . . . . . . Scanalyzer . | . . . . . . Garrison Access Hacks . | . . . . . . Unauthorized Hacks . | . . . . . . Terminals . | . . . . . . Fabricators . | . . . . . . Repair Stations . | . . . . . . Recycling Units . | . . . . . . Scanalyzers . | . . . . . . Garrison Access . | . . . . . . Data Cores Recovered 1 | . . . 1 . . Used . | . . . . . . Hacking Detections 6 | . 2 . 1 1 2 Full Trace Events 1 | . 1 . . . . Feedback Events . | . . . . . . Feedback Blocked . | . . . . . . Robot Schematics Acquired . | . . . . . . Robots Built . | . . . . . . Authchips . | . . . . . . Time . | . . . . . . Total Robot Build Rating . | . . . . . . Part Schematics Acquired . | . . . . . . Parts Built . | . . . . . . Authchips . | . . . . . . Time . | . . . . . . Total Part Build Rating . | . . . . . . Parts Repaired . | . . . . . . Time . | . . . . . . Parts Recycled . | . . . . . . Recycled Matter . | . . . . . . Retrieved Matter . | . . . . . . Retrieved Components . | . . . . . . Parts Scanalyzed . | . . . . . . Part Schematics Acquired . | . . . . . . Parts Damaged . | . . . . . . Bothacking | -11 -10 -10 -9 -8 -7 ------------ Run | Scr Mat Min Mat Mat Fac Used RIF Installer . | . . . . . . Robots Hacked . | . . . . . . Non-combat . | . . . . . . Combat . | . . . . . . Robot Hacks Applied . | . . . . . . Relay Couplers Released . | . . . . . . Robots Rewired . | . . . . . . Allies Hacked . | . . . . . . Hacks Repelled . | . . . . . . Allies | -11 -10 -10 -9 -8 -7 -------- Run | Scr Mat Min Mat Mat Fac Total Allies 1 | . . 1 . . . Largest Group 1 | . . 1 . . . Highest-Rated Group 31 | . . 31 . . . Highest-Rated Ally 31 | . . 31 . . . Total Orders . | . . . . . . Ally Attacks 14 | . . 14 . . . Total Damage 171 | . . 171 . . . Kills 2 | . . 2 . . . Allies Corrupted . | . . . . . . Allies Melted . | . . . . . . Intel | -11 -10 -10 -9 -8 -7 ------- Run | Scr Mat Min Mat Mat Fac Robot Analysis Total . | . . . . . . Derelict Logs Recovered . | . . . . . . Drone Launches . | . . . . . . Drone Recoveries . | . . . . . . Exploration | -11 -10 -10 -9 -8 -7 ------------- Run | Scr Mat Min Mat Mat Fac Turns Passed 1024 | . 147 63 77 253 484 Spaces Moved 863 | 1 156 42 154 220 290 Core 95 | . . . . 1 94 Treads 218 | . . . . 71 147 Legs 24 | 1 21 . . 2 . Wheels 82 | . 26 . . 7 49 Hover . | . . . . . . Flight 444 | . 109 42 154 139 . Fastest Speed 34 | 120 37 37 34 44 50 Average Speed 80 | 120 59 37 39 85 115 Slowest Speed 300 | 120 200 37 44 200 300 Overloaded Moves . | . . . . . . Propulsion Burnouts . | . . . . . . Robots Hopped 6 | . 1 3 1 1 . Cave-ins Triggered . | . . . . . . Exploration Rate (%) 15 | 2 33 10 18 21 10 Regions Visited 5 Branch Regions 1 Pre-discovered Areas . | . . . . . . Known Exits Taken 4 | . 1 1 1 1 . Unknown Exits Taken 1 | 1 . . . . . Scrap Searched . | . . . . . . Spaces Dug 1 | . . . . . 1 Terrain Destroyed 125 | . . . . 40 85 Melee 1 | . . . . . 1 Projectile 1 | . . . . . 1 AOE 123 | . . . . 40 83 Terrain Rammed . | . . . . . . Walls Destroyed . | . . . . . . Machines Disabled . | . . . . . . Actions | -11 -10 -10 -9 -8 -7 --------- Run | Scr Mat Min Mat Mat Fac Total 1097 | . 197 80 163 270 387 Wait 76 | . . 34 . 20 22 Move 847 | . 153 36 151 217 290 Hop 5 | . 1 2 1 1 . Pick Up 23 | . 8 . 3 3 9 Fast Attach 20 | . 5 . 1 6 8 Attach 17 | . 2 2 3 3 7 Detach 5 | . 2 2 . 1 . Swap 7 | . 2 . . 1 4 Drop 23 | . 14 . . 3 6 Fire 68 | . 10 4 4 13 37 Melee 3 | . . . . . 3 Ram 2 | . . . . 1 1 Kick . | . . . . . . Crush 1 | . . . . 1 . Escape Stasis . | . . . . . . Rewire . | . . . . . . Trap . | . . . . . . Miscellaneous . | . . . . . . Route ------- -11/Scrapyard -10/Materials -10/Mines -9/Materials -8/Materials -7/Factory (discovered 6 exits: *Fac x4 / Low x2) History --------- Turn | Location | Event 1 | -11/Scrapyard | Discovered new exit (range 0) 1 | -11/Scrapyard | Entered Materials 146 | -10/Materials | Discovered new exit (range 7) 148 | -10/Materials | Identified exit to Mines 148 | -10/Materials | Entered Mines 149 | -10/Mines | Met a Derelict testing a Signal Generator 198 | -10/Mines | Met a Derelict bent on vengeance 209 | -10/Mines | Discovered new exit (range 8) 211 | -10/Mines | Identified exit to Materials 211 | -10/Mines | Entered Materials 211 | -9/Materials | Evolved 2 slots: Propulsion x2 281 | -9/Materials | Discovered new exit (range 16) 287 | -9/Materials | Identified exit to Materials 288 | -9/Materials | Entered another Materials area 288 | -8/Materials | Evolved 2 slots: Utility x2 402 | -8/Materials | Lost 4 parts (4n) 533 | -8/Materials | Discovered new exit (range 3) 535 | -8/Materials | Identified exit to Factory 541 | -8/Materials | Entered Factory 541 | -7/Factory | Evolved 2 slots: Propulsion x2 588 | -7/Factory | Build established: Mutant 894 | -7/Factory | Lost 11 parts (6n3u2w) 935 | -7/Factory | Garrison activated, responded to threat 971 | -7/Factory | Core integrity fell below 50% 973 | -7/Factory | Released all parts (4) 994 | -7/Factory | Lost 9 parts (1p4n1u3w) 997 | -7/Factory | Identified exit to Lower Caves 997 | -7/Factory | Identified exit to Factory 1005 | -7/Factory | Core integrity fell below 20% 1025 | -7/Factory | Destroyed by S-27 Virus with Autogun Last Messages --------------- 00973_ Released Signal Interpreter. 00973_ Released Med. Storage Unit. 00973_ Released Structural Scanner. 00973_ Released Hpw. Shotgun. 00993_ Acquired Gravmag System. 00997_ Connecting with Terminal... >>Access(Branch) Found 2 branch access points: (62,183) Lower Caves (194,102) Lower Caves Map updated. >>Access(Main) Found 4 level access points to Factory: (97,24) (28,172) (70,105) (196,21) Map updated. 01004_ Acquired Cesium-ion Thruster. 01020_ Slammed into W-25 Informer. Map ----- +----------------------------------------------------+ | ?????????????????????????????????????????????????? | | ?????????????????????????????????????????????????? | | ?????????????????????????????????????????????????? | | ?????????????????????????????????????????????????? | | ?????????????????????????????????????????????????? | | ?????????????????????????????????????????????????? | | ?????????????????????????????????????????????????? | | ?????????????????????????????????????????????????? | | ?????????????????????????????????????????????????? | | ?????????????????????????????????????????????????? | | ?????????????????????????????????????????????????? | | ?????????????????????????????????????????????????? | | ?????????????????????????????????????????????????? | | ?????????????????????????????????????????????????? | | ?????????????????????????????????????????????????? | | ?????????????????????????????????????????????????? | | ?????????????????????????????????????????????????? | | ??????????????????????????####??#????????????????? | | ??????????????????????????# #????????????????? | | ??????????????????????????# ?????????????????? | | ??????????????????????????# """ ?????????????????? | | ??????????????????????????# """??????????????????? | | ??????????????????????????# """??????????????????? | | ???????????????#????####### ???????????????????? | | ???????????????# # # ???????????????????? | | ???????????????# k @##+##+#????????????????? | | ?????????? < r #????????????????? | | ?????????????### ## s #???#########+#### | | ???????????????###### ## sws##### | | ????????????????????###k#### | | ??????????????????????# ???## T###### | | ??????????????????????# ????####????# | | ??????????????????????#?????????????# | | ????????????????????????????????????# ###/#### | | ????????????????????????????????????# # | | ????????????????????????????????????# # """ " | | ????????????????????????????????????# # """ " | | ????????????????????????????????????# # """ " | | ????????????????????????????????????# # | | ????????????????????????????????????# # | | ????????????????????????????????????# ######## | | ????????????????????????????????????# #??????? | | ????????????????????????????????????# #??????? | | ????????????????????????????????????# #??????? | | ????????????????????????????????????# ???????? | | ????????????????????????????????????? ???????? | | ??????????????????????????????????????? ???????? | | ?????????????????????????????????????????????????? | | ?????????????????????????????????????????????????? | | ?????????????????????????????????????????????????? | +----------------------------------------------------+ Best States ------------- Heat Dissipation 34 Energy Generation 10 Energy Capacity 250 Matter Stores 300 Matter Capacity 350 Sight Range 16 Robot Scan Range 15 Terrain Scan Range 14 Terrain Scan Density 10 Jamming Range 8 Evasion (%) 63 Recoil Reduction 4 Kinecelleration 30 Item Schematics ----------------- None Robot Schematics ------------------ None Fabricated ------------ Nothing Alien Tech Used ----------------- None Achievements -------------- None Challenges ------------ None Game ------ Seed VisualMassLog Manual? 0 Play Time 00:23:51 Cumulative 463.0 hours Start 2021.11.03 @ 14:17:53 End 2021.11.03 @ 14:41:52 Sessions 1 Manual Loads 0 Difficulty Rogue Special Mode None Game No. 89 Rogue 58 Adventurer 31 Explorer 0 Win Type - Total 26 Types 21/0/2/3/0/0/0/0/0 Lore% 67 Gallery% 79 Achievement% 62 Wizard Run 0 Options --------- ASCII 0 Keyboard 0 Movement Arrows Keybinds 0 Fullscreen 1 Font 20/Terminus Map View 66x50 Tactical HUD 1 Map Filters NONE Filters NONE Steam 1 RUN: abe54282-5b42-492f-bd41-5ca39da9840f